[Event "*** SCC Grand Prix: Titled Tuesday Blitz"]
[Site "Chess.com"]
[Date "2020.08.04"]
[Round "9"]
[White "PawnEatingZombie"]
[Black "rududuyk"]
[Result "0-1"]
[WhiteElo "2224"]
[BlackElo "2098"]
[TimeControl "180+1"]
[EndTime "15:27:43 PDT"]
[Termination "rududuyk won by resignation"]

1. d4 {[%clk 0:03:00.9]} 1... e6 {[%clk 0:03:00.1]} 2. c4 {[%clk 0:03:00.5]}
2... f5 {[%clk 0:03:00.3]} 3. g3 {[%clk 0:02:59.7]} 3... Nf6 {[%clk 0:03:00.6]}
4. Bg2 {[%clk 0:03:00.2]} 4... Be7 {[%clk 0:02:55.5]} 5. Nf3 {[%clk 0:02:59.7]}
5... O-O {[%clk 0:02:54.9]} 6. O-O {[%clk 0:03:00.3]} 6... d6 {[%clk 0:02:53.6]}
7. Nc3 {[%clk 0:03:00.8]} 7... Ne4 {[%clk 0:02:53.6]} 8. Nxe4 {[%clk 0:02:59.8]}
8... fxe4 {[%clk 0:02:54.5]} 9. Ne1 {[%clk 0:03:00]} 9... d5 {[%clk 0:02:54.4]}
10. f3 {[%clk 0:02:59.6]} 10... dxc4 {[%clk 0:02:39.5]} 11. fxe4 {[%clk
0:02:57.1]} 11... Rxf1+ {[%clk 0:02:35.6]} 12. Kxf1 {[%clk 0:02:56.8]} 12... c5
{[%clk 0:02:31.9]} 13. e3 {[%clk 0:02:37.5]} 13... Nc6 {[%clk 0:02:29.3]} 14.
Nc2 {[%clk 0:02:37.2]} 14... Bf6 {[%clk 0:02:09.3]} 15. Qe2 {[%clk 0:02:20.9]}
15... cxd4 {[%clk 0:01:59]} 16. exd4 {[%clk 0:02:18.5]} 16... Nxd4 {[%clk
0:01:50.4]} 17. Nxd4 {[%clk 0:02:18.3]} 17... Qxd4 {[%clk 0:01:48.1]} 18. Be3
{[%clk 0:02:16.5]} 18... Qxb2 {[%clk 0:01:46.2]} 19. Qxb2 {[%clk 0:01:32.4]}
19... Bxb2 {[%clk 0:01:47.1]} 20. Rd1 {[%clk 0:01:32.6]} 20... c3 {[%clk
0:01:22.6]} 21. Bc1 {[%clk 0:01:17.8]} 21... b6 {[%clk 0:00:46.4]} 22. e5 {[%clk
0:01:05.3]} 22... Ba6+ {[%clk 0:00:45.3]} 23. Kf2 {[%clk 0:01:01.6]} 23... c2
{[%clk 0:00:42.4]} 24. Re1 {[%clk 0:00:56.3]} 24... Bd4+ {[%clk 0:00:36.7]} 25.
Be3 {[%clk 0:00:52.7]} 25... Rf8+ {[%clk 0:00:26.6]} 26. Bf3 {[%clk 0:00:52.8]}
26... Bxe5 {[%clk 0:00:16.4]} 27. Rc1 {[%clk 0:00:51.9]} 27... Bb7 {[%clk
0:00:16]} 28. Rxc2 {[%clk 0:00:49.9]} 28... Rxf3+ {[%clk 0:00:15.9]} 29. Ke2
{[%clk 0:00:50.1]} 29... Rf8 {[%clk 0:00:14.1]} 30. Rd2 {[%clk 0:00:49.6]} 30...
Bf6 {[%clk 0:00:13.7]} 31. Rd7 {[%clk 0:00:49.2]} 31... Ba6+ {[%clk 0:00:13]}
32. Ke1 {[%clk 0:00:46.7]} 32... Ra8 {[%clk 0:00:12.1]} 33. g4 {[%clk
0:00:43.9]} 33... Bc4 {[%clk 0:00:12.1]} 34. g5 {[%clk 0:00:42.7]} 34... Bc3+
{[%clk 0:00:12.2]} 35. Kf2 {[%clk 0:00:42.9]} 35... Bxa2 {[%clk 0:00:12.2]} 36.
h4 {[%clk 0:00:41]} 36... b5 {[%clk 0:00:12.3]} 37. h5 {[%clk 0:00:40.8]} 37...
b4 {[%clk 0:00:12.1]} 38. g6 {[%clk 0:00:41.2]} 38... Rf8+ {[%clk 0:00:11.6]}
39. Ke2 {[%clk 0:00:40.6]} 39... hxg6 {[%clk 0:00:11.5]} 40. hxg6 {[%clk
0:00:40.1]} 40... Bc4+ {[%clk 0:00:12.3]} 41. Kd1 {[%clk 0:00:39.9]} 41... a5
{[%clk 0:00:12.4]} 42. Bc5 {[%clk 0:00:38.1]} 42... Rf1+ {[%clk 0:00:12.3]} 43.
Kc2 {[%clk 0:00:38.4]} 43... Rf8 {[%clk 0:00:10.7]} 44. Bxf8 {[%clk 0:00:37.1]}
44... Kxf8 {[%clk 0:00:11.6]} 45. Rf7+ {[%clk 0:00:36.5]} 45... Kg8 {[%clk
0:00:12.1]} 46. Ra7 {[%clk 0:00:34.9]} 46... Kf8 {[%clk 0:00:12.4]} 47. Rf7+
{[%clk 0:00:34.5]} 47... Ke8 {[%clk 0:00:12.8]} 48. Rc7 {[%clk 0:00:27]} 48...
Bd5 {[%clk 0:00:12]} 49. Ra7 {[%clk 0:00:18.4]} 49... Be4+ {[%clk 0:00:12.1]}
50. Kb3 {[%clk 0:00:17.8]} 50... Bxg6 {[%clk 0:00:13]} 51. Rxa5 {[%clk
0:00:16.5]} 51... e5 {[%clk 0:00:13.3]} 52. Ra7 {[%clk 0:00:13.5]} 52... e4
{[%clk 0:00:12.3]} 53. Kc2 {[%clk 0:00:13.7]} 53... e3+ {[%clk 0:00:11.8]} 54.
Kd1 {[%clk 0:00:13.4]} 54... Bd3 {[%clk 0:00:11.7]} 55. Ra2 {[%clk 0:00:10.2]}
55... e2+ {[%clk 0:00:11.7]} 0-1

[Event "*** SCC Grand Prix: Titled Tuesday Blitz"]
[Site "Chess.com"]
[Date "2020.08.04"]
[Round "9"]
[White "1977Ivan"]
[Black "Char_dasha"]
[Result "0-1"]
[WhiteElo "2678"]
[BlackElo "2457"]
[TimeControl "180+1"]
[EndTime "15:27:44 PDT"]
[Termination "Char_dasha won on time"]

1. d4 {[%clk 0:03:00.9]} 1... f5 {[%clk 0:02:59.3]} 2. c4 {[%clk 0:03:00.5]}
2... Nf6 {[%clk 0:02:59.6]} 3. Nc3 {[%clk 0:03:00.9]} 3... e6 {[%clk 0:02:59.8]}
4. a3 {[%clk 0:02:58.6]} 4... b6 {[%clk 0:02:53.5]} 5. Nf3 {[%clk 0:02:52]} 5...
Bb7 {[%clk 0:02:54]} 6. d5 {[%clk 0:02:49.4]} 6... Na6 {[%clk 0:02:51.7]} 7. Bf4
{[%clk 0:02:43.4]} 7... Be7 {[%clk 0:02:15.7]} 8. e3 {[%clk 0:02:42.6]} 8... O-O
{[%clk 0:02:15.1]} 9. Be2 {[%clk 0:02:41.7]} 9... Nc5 {[%clk 0:02:14.6]} 10. O-O
{[%clk 0:02:39]} 10... Nfe4 {[%clk 0:02:02.2]} 11. Nxe4 {[%clk 0:02:21]} 11...
fxe4 {[%clk 0:02:01.9]} 12. Nd4 {[%clk 0:02:16.5]} 12... Bf6 {[%clk 0:01:54.7]}
13. Nb5 {[%clk 0:01:39.5]} 13... d6 {[%clk 0:01:38.5]} 14. b4 {[%clk 0:01:28.1]}
14... Bxa1 {[%clk 0:01:31.3]} 15. bxc5 {[%clk 0:01:25.6]} 15... Be5 {[%clk
0:01:27.1]} 16. c6 {[%clk 0:01:13.4]} 16... Bc8 {[%clk 0:01:13.2]} 17. Bxe5
{[%clk 0:01:03.2]} 17... dxe5 {[%clk 0:01:12.6]} 18. d6 {[%clk 0:00:45.4]} 18...
a6 {[%clk 0:00:47.4]} 19. Nxc7 {[%clk 0:00:42.2]} 19... Ra7 {[%clk 0:00:47.6]}
20. c5 {[%clk 0:00:33.1]} 20... bxc5 {[%clk 0:00:44.9]} 21. Bc4 {[%clk
0:00:27.4]} 21... Rxc7 {[%clk 0:00:42.8]} 22. dxc7 {[%clk 0:00:28.3]} 22... Qxc7
{[%clk 0:00:43.1]} 23. Qa4 {[%clk 0:00:27.6]} 23... Rd8 {[%clk 0:00:36.1]} 24.
Rb1 {[%clk 0:00:25.2]} 24... Rd6 {[%clk 0:00:35.4]} 25. h4 {[%clk 0:00:23.9]}
25... Rxc6 {[%clk 0:00:33.9]} 26. Rb8 {[%clk 0:00:19.6]} 26... Kf7 {[%clk
0:00:24]} 27. Qb3 {[%clk 0:00:15.8]} 27... Qd8 {[%clk 0:00:22.2]} 28. Rb7+
{[%clk 0:00:11.8]} 28... Bxb7 {[%clk 0:00:20.9]} 29. Qxb7+ {[%clk 0:00:10.9]}
29... Qc7 {[%clk 0:00:20.5]} 30. Qa8 {[%clk 0:00:09.4]} 30... Qc8 {[%clk
0:00:18.5]} 31. Qa7+ {[%clk 0:00:09.1]} 31... Rc7 {[%clk 0:00:17.9]} 32. Qb6
{[%clk 0:00:09.1]} 32... Re7 {[%clk 0:00:15.9]} 33. Qd6 {[%clk 0:00:08.4]} 33...
Qd7 {[%clk 0:00:14.2]} 34. Qxe5 {[%clk 0:00:07.1]} 34... Qd1+ {[%clk 0:00:14.1]}
35. Kh2 {[%clk 0:00:06.6]} 35... Qg4 {[%clk 0:00:14.5]} 36. g3 {[%clk
0:00:06.4]} 36... Qf3 {[%clk 0:00:14]} 37. Kg1 {[%clk 0:00:06.5]} 37... Qd1+
{[%clk 0:00:13.9]} 38. Kh2 {[%clk 0:00:06.5]} 38... Qf3 {[%clk 0:00:14]} 39. Kg1
{[%clk 0:00:06.6]} 39... Qf6 {[%clk 0:00:13.5]} 40. Qxc5 {[%clk 0:00:06.1]}
40... Rd7 {[%clk 0:00:13.4]} 41. Be2 {[%clk 0:00:05.2]} 41... Rd2 {[%clk
0:00:12.6]} 42. Qh5+ {[%clk 0:00:04.7]} 42... Ke7 {[%clk 0:00:12.4]} 43. Kg2
{[%clk 0:00:04]} 43... Qb2 {[%clk 0:00:11.5]} 44. Qg5+ {[%clk 0:00:02.7]} 44...
Kf7 {[%clk 0:00:11.3]} 45. Bh5+ {[%clk 0:00:01.9]} 45... g6 {[%clk 0:00:11.1]}
46. Qf4+ {[%clk 0:00:01.8]} 46... Kg7 {[%clk 0:00:11]} 47. Qc7+ {[%clk
0:00:01.6]} 47... Kh6 {[%clk 0:00:10.6]} 0-1

[Event "*** SCC Grand Prix: Titled Tuesday Blitz"]
[Site "Chess.com"]
[Date "2020.08.04"]
[Round "9"]
[White "KyrgyzFighter"]
[Black "ferdipy"]
[Result "1-0"]
[WhiteElo "2320"]
[BlackElo "2316"]
[TimeControl "180+1"]
[EndTime "15:27:47 PDT"]
[Termination "KyrgyzFighter won on time"]

1. c4 {[%clk 0:03:00.9]} 1... e5 {[%clk 0:02:53.6]} 2. Nc3 {[%clk 0:02:59.4]}
2... Nc6 {[%clk 0:02:53.9]} 3. g3 {[%clk 0:02:57.4]} 3... g6 {[%clk 0:02:36.2]}
4. Bg2 {[%clk 0:02:57.1]} 4... Bg7 {[%clk 0:02:25]} 5. e3 {[%clk 0:02:56.2]}
5... d6 {[%clk 0:02:23.9]} 6. Nge2 {[%clk 0:02:56]} 6... Be6 {[%clk 0:02:23.3]}
7. d3 {[%clk 0:02:52]} 7... Qd7 {[%clk 0:02:22.5]} 8. Rb1 {[%clk 0:02:48.6]}
8... a5 {[%clk 0:02:20.7]} 9. h4 {[%clk 0:02:48.1]} 9... h5 {[%clk 0:02:17.8]}
10. a3 {[%clk 0:02:46.1]} 10... Nge7 {[%clk 0:02:17.3]} 11. b4 {[%clk
0:02:45.7]} 11... axb4 {[%clk 0:02:14.4]} 12. axb4 {[%clk 0:02:46.6]} 12... O-O
{[%clk 0:02:12.1]} 13. O-O {[%clk 0:02:45.9]} 13... f5 {[%clk 0:02:06.9]} 14.
Nd5 {[%clk 0:02:45.4]} 14... Nd8 {[%clk 0:02:03]} 15. f4 {[%clk 0:02:41.3]}
15... Ra2 {[%clk 0:01:50.1]} 16. Rb2 {[%clk 0:02:35]} 16... Rxb2 {[%clk
0:01:46.6]} 17. Bxb2 {[%clk 0:02:35.9]} 17... c6 {[%clk 0:01:43.7]} 18. Nxe7+
{[%clk 0:02:33]} 18... Qxe7 {[%clk 0:01:43.7]} 19. Qc2 {[%clk 0:02:29.5]} 19...
Nf7 {[%clk 0:01:35.3]} 20. e4 {[%clk 0:02:24]} 20... Ra8 {[%clk 0:01:29.1]} 21.
Ra1 {[%clk 0:02:09.9]} 21... Rxa1+ {[%clk 0:01:09.3]} 22. Bxa1 {[%clk
0:02:10.8]} 22... fxe4 {[%clk 0:01:03.5]} 23. dxe4 {[%clk 0:02:09.4]} 23... Bg4
{[%clk 0:01:03.6]} 24. f5 {[%clk 0:02:01.7]} 24... gxf5 {[%clk 0:00:59]} 25.
exf5 {[%clk 0:02:02.6]} 25... Nh6 {[%clk 0:00:52.9]} 26. b5 {[%clk 0:01:54.7]}
26... Bxf5 {[%clk 0:00:50]} 27. Qd2 {[%clk 0:01:54.6]} 27... e4 {[%clk
0:00:45.6]} 28. Bxg7 {[%clk 0:01:52.4]} 28... Kxg7 {[%clk 0:00:45.3]} 29. bxc6
{[%clk 0:01:51.2]} 29... bxc6 {[%clk 0:00:44.8]} 30. Nf4 {[%clk 0:01:40.6]}
30... Ng4 {[%clk 0:00:29.6]} 31. Nxh5+ {[%clk 0:01:35.8]} 31... Kh7 {[%clk
0:00:27.3]} 32. Qf4 {[%clk 0:01:33.2]} 32... Qa7+ {[%clk 0:00:25.5]} 33. Kh1
{[%clk 0:01:27.2]} 33... Nf2+ {[%clk 0:00:22.3]} 34. Kh2 {[%clk 0:01:22.3]}
34... Ng4+ {[%clk 0:00:22.9]} 35. Kh3 {[%clk 0:01:18.3]} 35... Nh6+ {[%clk
0:00:18.6]} 36. Kh2 {[%clk 0:01:04]} 36... Ng4+ {[%clk 0:00:18.9]} 37. Kh1
{[%clk 0:01:01.7]} 37... Qa1+ {[%clk 0:00:16]} 38. Bf1 {[%clk 0:01:01.2]} 38...
Bg6 {[%clk 0:00:13.8]} 39. Qxg4 {[%clk 0:00:37.2]} 39... Qxf1+ {[%clk 0:00:11]}
40. Kh2 {[%clk 0:00:37.5]} 40... Qf2+ {[%clk 0:00:10.7]} 41. Kh1 {[%clk
0:00:37.6]} 41... Qe1+ {[%clk 0:00:10.7]} 42. Kg2 {[%clk 0:00:36.6]} 42... Qd2+
{[%clk 0:00:09.4]} 43. Kg1 {[%clk 0:00:36.4]} 43... Qe1+ {[%clk 0:00:08.5]} 44.
Kg2 {[%clk 0:00:36.2]} 44... Qd2+ {[%clk 0:00:08.4]} 45. Kh3 {[%clk 0:00:36.6]}
45... Qc3 {[%clk 0:00:03.1]} 46. Qd7+ {[%clk 0:00:36.4]} 46... Kh6 {[%clk
0:00:03.1]} 47. Nf4 {[%clk 0:00:34.4]} 47... Qe5 {[%clk 0:00:01.4]} 48. Nxg6
{[%clk 0:00:34.6]} 48... Kxg6 {[%clk 0:00:02.3]} 49. Qg4+ {[%clk 0:00:28.2]}
49... Kf6 {[%clk 0:00:03.2]} 50. h5 {[%clk 0:00:20.3]} 50... e3 {[%clk
0:00:03.1]} 51. h6 {[%clk 0:00:19.7]} 1-0

[Event "*** SCC Grand Prix: Titled Tuesday Blitz"]
[Site "Chess.com"]
[Date "2020.08.04"]
[Round "9"]
[White "BeanScreen"]
[Black "Alberquintin"]
[Result "1/2-1/2"]
[WhiteElo "2714"]
[BlackElo "2501"]
[TimeControl "180+1"]
[EndTime "15:27:50 PDT"]
[Termination "Game drawn by repetition"]

1. e4 {[%clk 0:03:00.9]} 1... e5 {[%clk 0:02:59.9]} 2. Nf3 {[%clk 0:03:01.2]}
2... Nc6 {[%clk 0:03:00.3]} 3. Bc4 {[%clk 0:03:01.4]} 3... Nf6 {[%clk
0:03:00.1]} 4. d3 {[%clk 0:03:01.8]} 4... Bc5 {[%clk 0:02:59.7]} 5. c3 {[%clk
0:03:02.2]} 5... d6 {[%clk 0:02:59.5]} 6. Nbd2 {[%clk 0:03:02.6]} 6... O-O
{[%clk 0:02:58.8]} 7. Nf1 {[%clk 0:03:02.3]} 7... Ng4 {[%clk 0:02:55.8]} 8. Ne3
{[%clk 0:03:00.7]} 8... Nxe3 {[%clk 0:02:55.9]} 9. Bxe3 {[%clk 0:03:01.6]} 9...
Bxe3 {[%clk 0:02:55.9]} 10. fxe3 {[%clk 0:03:02.5]} 10... Be6 {[%clk 0:02:56.2]}
11. Bxe6 {[%clk 0:03:02.4]} 11... fxe6 {[%clk 0:02:57.1]} 12. O-O {[%clk
0:03:02.9]} 12... Qe7 {[%clk 0:02:51.5]} 13. Qe1 {[%clk 0:03:01.7]} 13... Rf7
{[%clk 0:02:51.3]} 14. Qg3 {[%clk 0:02:59.8]} 14... Raf8 {[%clk 0:02:51.7]} 15.
Rf2 {[%clk 0:02:50.6]} 15... Nb8 {[%clk 0:02:50.8]} 16. Raf1 {[%clk 0:02:50.3]}
16... Nd7 {[%clk 0:02:51]} 17. d4 {[%clk 0:02:44.3]} 17... exd4 {[%clk
0:02:42.7]} 18. exd4 {[%clk 0:02:44.4]} 18... e5 {[%clk 0:02:41.5]} 19. dxe5
{[%clk 0:02:18.7]} 19... Nxe5 {[%clk 0:02:37.5]} 20. Nxe5 {[%clk 0:02:18.9]}
20... Rxf2 {[%clk 0:02:37.3]} 21. Rxf2 {[%clk 0:02:18.7]} 21... Rxf2 {[%clk
0:02:36.4]} 22. Qxf2 {[%clk 0:02:17.8]} 22... Qxe5 {[%clk 0:02:34]} 23. Qxa7
{[%clk 0:02:17.6]} 23... h6 {[%clk 0:02:14.3]} 24. Qxb7 {[%clk 0:02:15.7]} 24...
Qc5+ {[%clk 0:02:09.7]} 25. Kf1 {[%clk 0:02:14.3]} 25... Qe3 {[%clk 0:02:09.9]}
26. Qb3+ {[%clk 0:01:38.5]} 26... Kh8 {[%clk 0:02:00.3]} 27. Qc2 {[%clk
0:01:36.2]} 27... Qf4+ {[%clk 0:02:00.3]} 28. Kg1 {[%clk 0:01:34.7]} 28... Qe3+
{[%clk 0:02:00.3]} 29. Kf1 {[%clk 0:01:34.6]} 29... Qf4+ {[%clk 0:02:00.4]} 30.
Ke2 {[%clk 0:01:34.9]} 30... Qxh2 {[%clk 0:02:00.7]} 31. Kd3 {[%clk 0:01:35]}
31... Qg1 {[%clk 0:01:53]} 32. b4 {[%clk 0:01:28.1]} 32... Qf1+ {[%clk
0:01:51.9]} 33. Kd4 {[%clk 0:01:19.8]} 33... Qb5 {[%clk 0:01:46.8]} 34. a4
{[%clk 0:01:18.6]} 34... c5+ {[%clk 0:01:44.1]} 35. Kd5 {[%clk 0:01:12.7]} 35...
Qb7+ {[%clk 0:01:44.3]} 36. Kxd6 {[%clk 0:01:12.2]} 36... cxb4 {[%clk
0:01:44.8]} 37. cxb4 {[%clk 0:01:02.8]} 37... Qxb4+ {[%clk 0:01:45]} 38. Ke6
{[%clk 0:00:51.2]} 38... Qb6+ {[%clk 0:01:44]} 39. Kd5 {[%clk 0:00:49.3]} 39...
Qa5+ {[%clk 0:01:42.2]} 40. Kc4 {[%clk 0:00:46.6]} 40... Qc7+ {[%clk 0:01:38.6]}
41. Kb3 {[%clk 0:00:46.5]} 41... Qb6+ {[%clk 0:01:38.8]} 42. Ka3 {[%clk
0:00:45.8]} 42... Qd6+ {[%clk 0:01:37.7]} 43. Kb2 {[%clk 0:00:45.8]} 43... Qe5+
{[%clk 0:01:34.9]} 44. Kb1 {[%clk 0:00:45.9]} 44... Qb8+ {[%clk 0:01:33.2]} 45.
Qb2 {[%clk 0:00:46.4]} 45... Qa8 {[%clk 0:01:28.5]} 46. Qb4 {[%clk 0:00:43.1]}
46... Qa7 {[%clk 0:01:27.6]} 47. Kc2 {[%clk 0:00:33.7]} 47... Qf2+ {[%clk
0:01:27.2]} 48. Qd2 {[%clk 0:00:34.2]} 48... Qc5+ {[%clk 0:01:26.4]} 49. Kb3
{[%clk 0:00:34.1]} 49... Qb6+ {[%clk 0:01:25.4]} 50. Ka2 {[%clk 0:00:31.6]}
50... Qe6+ {[%clk 0:01:24.5]} 51. Qd5 {[%clk 0:00:31.9]} 51... Qa6 {[%clk
0:01:20.5]} 52. Qb5 {[%clk 0:00:27.2]} 52... Qe6+ {[%clk 0:01:18.3]} 53. Qd5
{[%clk 0:00:27.7]} 53... Qg6 {[%clk 0:01:16.9]} 54. a5 {[%clk 0:00:15.1]} 54...
Qxg2+ {[%clk 0:01:17]} 55. Kb3 {[%clk 0:00:15.3]} 55... Qf3+ {[%clk 0:01:15.9]}
56. Kb4 {[%clk 0:00:15.1]} 56... Qe2 {[%clk 0:01:09.9]} 57. Qa8+ {[%clk
0:00:13.2]} 57... Kh7 {[%clk 0:01:09.4]} 58. a6 {[%clk 0:00:10.6]} 58... Qb2+
{[%clk 0:01:08.8]} 59. Kc5 {[%clk 0:00:11]} 59... Qc3+ {[%clk 0:01:07.2]} 60.
Kd6 {[%clk 0:00:11.1]} 60... Qf6+ {[%clk 0:01:05.7]} 61. Kc7 {[%clk 0:00:09.1]}
61... Qe5+ {[%clk 0:01:05.5]} 62. Kc8 {[%clk 0:00:07.6]} 62... Qe8+ {[%clk
0:01:05.5]} 63. Kb7 {[%clk 0:00:07.9]} 63... Qxe4+ {[%clk 0:01:05.7]} 64. Ka7
{[%clk 0:00:08.5]} 64... Qd4+ {[%clk 0:01:05.9]} 65. Kb8 {[%clk 0:00:08.8]}
65... Qd8+ {[%clk 0:01:04.7]} 66. Ka7 {[%clk 0:00:08.8]} 66... Qd4+ {[%clk
0:01:04.8]} 67. Kb8 {[%clk 0:00:08.5]} 67... Qd8+ {[%clk 0:01:04.7]} 68. Kb7
{[%clk 0:00:08.4]} 68... Qd5+ {[%clk 0:01:04.7]} 69. Ka7 {[%clk 0:00:08.8]}
69... Qd4+ {[%clk 0:01:04.8]} 1/2-1/2

[Event "*** SCC Grand Prix: Titled Tuesday Blitz"]
[Site "Chess.com"]
[Date "2020.08.04"]
[Round "9"]
[White "Resignify"]
[Black "Klavdia_Nik"]
[Result "1-0"]
[WhiteElo "2206"]
[BlackElo "2018"]
[TimeControl "180+1"]
[EndTime "15:27:50 PDT"]
[Termination "Resignify won on time"]

1. e4 {[%clk 0:03:00.9]} 1... g6 {[%clk 0:02:40.7]} 2. d4 {[%clk 0:02:56.7]}
2... Bg7 {[%clk 0:02:40.6]} 3. Nf3 {[%clk 0:02:55.9]} 3... d6 {[%clk 0:02:35.6]}
4. Nc3 {[%clk 0:02:52.8]} 4... c6 {[%clk 0:02:35.2]} 5. Be2 {[%clk 0:02:51.6]}
5... Nf6 {[%clk 0:02:31.2]} 6. a4 {[%clk 0:02:50.4]} 6... a5 {[%clk 0:02:30.2]}
7. O-O {[%clk 0:02:49.4]} 7... O-O {[%clk 0:02:27.6]} 8. Re1 {[%clk 0:02:49.5]}
8... Na6 {[%clk 0:02:17.9]} 9. h3 {[%clk 0:02:45.8]} 9... Nb4 {[%clk 0:02:16]}
10. Bf1 {[%clk 0:02:32.6]} 10... h6 {[%clk 0:01:47.2]} 11. Nb1 {[%clk 0:02:23]}
11... d5 {[%clk 0:01:36.2]} 12. e5 {[%clk 0:02:18.8]} 12... Ne4 {[%clk
0:01:35.4]} 13. c3 {[%clk 0:02:14.5]} 13... Na6 {[%clk 0:01:35.6]} 14. Nbd2
{[%clk 0:02:11.3]} 14... Nxd2 {[%clk 0:01:32]} 15. Qxd2 {[%clk 0:02:03.6]} 15...
Kh7 {[%clk 0:01:22.9]} 16. Bd3 {[%clk 0:02:03.1]} 16... c5 {[%clk 0:01:20.2]}
17. h4 {[%clk 0:01:52.7]} 17... cxd4 {[%clk 0:01:13.5]} 18. cxd4 {[%clk
0:01:45.8]} 18... Nb4 {[%clk 0:01:12.8]} 19. Bb1 {[%clk 0:01:43]} 19... Bg4
{[%clk 0:01:10.5]} 20. Nh2 {[%clk 0:01:38]} 20... Qc8 {[%clk 0:00:50]} 21. Nxg4
{[%clk 0:01:26.2]} 21... Qxg4 {[%clk 0:00:47.5]} 22. Qf4 {[%clk 0:01:19.5]}
22... Qxf4 {[%clk 0:00:44.7]} 23. Bxf4 {[%clk 0:01:20.4]} 23... e6 {[%clk
0:00:44.4]} 24. h5 {[%clk 0:01:16.4]} 24... Rfc8 {[%clk 0:00:38.5]} 25. Bd2
{[%clk 0:01:05.5]} 25... Nc2 {[%clk 0:00:33.6]} 26. hxg6+ {[%clk 0:01:03.6]}
26... fxg6 {[%clk 0:00:31.8]} 27. Bxc2 {[%clk 0:01:02.4]} 27... Rxc2 {[%clk
0:00:31.6]} 28. Bc3 {[%clk 0:00:58.8]} 28... Bf8 {[%clk 0:00:20]} 29. Rac1
{[%clk 0:00:57.3]} 29... Rxc1 {[%clk 0:00:18.1]} 30. Rxc1 {[%clk 0:00:58.2]}
30... Rc8 {[%clk 0:00:16.4]} 31. Kf1 {[%clk 0:00:48.2]} 31... g5 {[%clk
0:00:15.7]} 32. Ke2 {[%clk 0:00:47.9]} 32... Kg6 {[%clk 0:00:15.9]} 33. g4
{[%clk 0:00:44.9]} 33... b6 {[%clk 0:00:14.5]} 34. Kd3 {[%clk 0:00:44.5]} 34...
Be7 {[%clk 0:00:13.6]} 35. Bd2 {[%clk 0:00:33.5]} 35... Rxc1 {[%clk 0:00:11.5]}
36. Bxc1 {[%clk 0:00:34.4]} 36... h5 {[%clk 0:00:10.1]} 37. gxh5+ {[%clk
0:00:33.2]} 37... Kxh5 {[%clk 0:00:11]} 38. f3 {[%clk 0:00:32.7]} 38... Kh4
{[%clk 0:00:10.6]} 39. Ke2 {[%clk 0:00:27]} 39... Kg3 {[%clk 0:00:10.3]} 40. Bd2
{[%clk 0:00:24.8]} 40... Kg2 {[%clk 0:00:10.4]} 41. Be3 {[%clk 0:00:23.1]} 41...
Bd8 {[%clk 0:00:10.4]} 42. Bd2 {[%clk 0:00:20]} 42... Be7 {[%clk 0:00:09]} 43.
Be1 {[%clk 0:00:19.3]} 43... Bb4 {[%clk 0:00:06.5]} 44. Bc3 {[%clk 0:00:13.7]}
44... Bxc3 {[%clk 0:00:05.6]} 45. bxc3 {[%clk 0:00:14.6]} 45... Kg3 {[%clk
0:00:04.6]} 46. Ke3 {[%clk 0:00:14.2]} 46... Kg2 {[%clk 0:00:04.6]} 47. Ke2
{[%clk 0:00:09]} 47... Kg3 {[%clk 0:00:03.9]} 48. Ke3 {[%clk 0:00:08.7]} 48...
Kg2 {[%clk 0:00:01.9]} 49. f4 {[%clk 0:00:08.6]} 1-0

[Event "*** SCC Grand Prix: Titled Tuesday Blitz"]
[Site "Chess.com"]
[Date "2020.08.04"]
[Round "9"]
[White "Micki-taryan"]
[Black "Beca95"]
[Result "1-0"]
[WhiteElo "3059"]
[BlackElo "2888"]
[TimeControl "180+1"]
[EndTime "15:27:58 PDT"]
[Termination "Micki-taryan won by resignation"]

1. e3 {[%clk 0:03:00.9]} 1... d5 {[%clk 0:02:57.7]} 2. Nf3 {[%clk 0:03:01.2]}
2... Nf6 {[%clk 0:02:57.9]} 3. b3 {[%clk 0:03:02]} 3... e6 {[%clk 0:02:56.3]} 4.
Bb2 {[%clk 0:03:02.3]} 4... Bd6 {[%clk 0:02:55.7]} 5. c4 {[%clk 0:03:02.8]} 5...
O-O {[%clk 0:02:55.2]} 6. Be2 {[%clk 0:03:03.3]} 6... b6 {[%clk 0:02:55.6]} 7.
g4 {[%clk 0:03:01.7]} 7... Bb7 {[%clk 0:02:47.5]} 8. g5 {[%clk 0:03:01.8]} 8...
Nfd7 {[%clk 0:02:43.7]} 9. h4 {[%clk 0:03:00.4]} 9... dxc4 {[%clk 0:02:41.4]}
10. bxc4 {[%clk 0:02:59.1]} 10... Nc6 {[%clk 0:02:34.1]} 11. Nc3 {[%clk
0:02:35.1]} 11... Nce5 {[%clk 0:02:33]} 12. d3 {[%clk 0:02:30.5]} 12... Qe7
{[%clk 0:02:13]} 13. Rg1 {[%clk 0:02:25.6]} 13... Ba3 {[%clk 0:02:11.9]} 14.
Bxa3 {[%clk 0:02:17.3]} 14... Qxa3 {[%clk 0:02:12.8]} 15. Nb5 {[%clk 0:02:14.3]}
15... Qb4+ {[%clk 0:02:04.3]} 16. Kf1 {[%clk 0:02:11.3]} 16... a6 {[%clk
0:02:03.3]} 17. Nbd4 {[%clk 0:02:11.1]} 17... Rad8 {[%clk 0:01:59.4]} 18. h5
{[%clk 0:02:07.4]} 18... Qe7 {[%clk 0:01:59.2]} 19. Nxe5 {[%clk 0:01:54]} 19...
Nxe5 {[%clk 0:01:58.7]} 20. f4 {[%clk 0:01:53.9]} 20... c5 {[%clk 0:01:58]} 21.
fxe5 {[%clk 0:01:50.5]} 21... cxd4 {[%clk 0:01:58.3]} 22. Rb1 {[%clk 0:01:44.4]}
22... Qc7 {[%clk 0:01:57.1]} 23. e4 {[%clk 0:01:42.1]} 23... Bc6 {[%clk
0:01:44.2]} 24. Qe1 {[%clk 0:01:37]} 24... b5 {[%clk 0:01:39.8]} 25. cxb5 {[%clk
0:01:32.1]} 25... Bxb5 {[%clk 0:01:39.8]} 26. Qg3 {[%clk 0:01:31.6]} 26... Rc8
{[%clk 0:01:38.9]} 27. h6 {[%clk 0:01:28]} 27... Qc2 {[%clk 0:00:53.8]} 28. Kf2
{[%clk 0:01:23.3]} 28... Rc3 {[%clk 0:00:47.6]} 29. hxg7 {[%clk 0:01:19.5]}
29... Rfc8 {[%clk 0:00:47]} 30. Rbd1 {[%clk 0:01:10.6]} 30... Qxa2 {[%clk
0:00:35.7]} 31. Qf3 {[%clk 0:01:01.8]} 31... Rc2 {[%clk 0:00:33.8]} 32. Rde1
{[%clk 0:00:59.3]} 32... Rd2 {[%clk 0:00:31.9]} 33. Rh1 {[%clk 0:00:52]} 33...
Bxd3 {[%clk 0:00:28.3]} 34. Rxh7 {[%clk 0:00:47.9]} 34... Rxe2+ {[%clk
0:00:12.1]} 35. Rxe2 {[%clk 0:00:46.7]} 35... Qxe2+ {[%clk 0:00:12.1]} 36. Qxe2
{[%clk 0:00:47]} 36... Bxe2 {[%clk 0:00:13]} 37. Rh8+ {[%clk 0:00:45.7]} 37...
Kxg7 {[%clk 0:00:13.4]} 38. Rxc8 {[%clk 0:00:46.4]} 38... Bb5 {[%clk 0:00:12.7]}
39. Rd8 {[%clk 0:00:38]} 39... Kg6 {[%clk 0:00:13.1]} 40. Rxd4 {[%clk
0:00:35.3]} 40... Kxg5 {[%clk 0:00:13.6]} 41. Ke3 {[%clk 0:00:36.2]} 41... f6
{[%clk 0:00:13.1]} 42. Rd6 {[%clk 0:00:32.9]} 42... Bc4 {[%clk 0:00:12]} 43. Kd4
{[%clk 0:00:33]} 43... Bb3 {[%clk 0:00:10.2]} 44. Rxa6 {[%clk 0:00:32.7]} 44...
Kg6 {[%clk 0:00:07.1]} 45. Rb6 {[%clk 0:00:31.6]} 45... Ba2 {[%clk 0:00:06.5]}
46. Rb2 {[%clk 0:00:32.1]} 46... fxe5+ {[%clk 0:00:06.9]} 47. Kxe5 {[%clk
0:00:31.9]} 47... Bc4 {[%clk 0:00:06.6]} 48. Rf2 {[%clk 0:00:32.4]} 48... Kg7
{[%clk 0:00:06.2]} 49. Rc2 {[%clk 0:00:30.3]} 49... Bb3 {[%clk 0:00:05.9]} 50.
Rb2 {[%clk 0:00:28.6]} 50... Bc4 {[%clk 0:00:06]} 51. Rb4 {[%clk 0:00:28.9]}
51... Ba2 {[%clk 0:00:06]} 52. Rb7+ {[%clk 0:00:29.3]} 52... Kg6 {[%clk
0:00:05.7]} 53. Ra7 {[%clk 0:00:29.8]} 53... Bb3 {[%clk 0:00:05.2]} 54. Re7
{[%clk 0:00:30.3]} 54... Ba2 {[%clk 0:00:05.5]} 55. Rxe6+ {[%clk 0:00:29.9]} 1-0